[Event "*** Titled Tuesday Blitz"]
[Site "Chess.com"]
[Date "2021.04.27"]
[Round "2"]
[White "PawnEatingZombie"]
[Black "lucachess49"]
[Result "1-0"]
[WhiteElo "2251"]
[BlackElo "2434"]
[TimeControl "180+1"]
[EndTime "10:17:45 PDT"]
[Termination "PawnEatingZombie won by resignation"]

1. d4 {[%clk 0:03:00.9]} 1... Nf6 {[%clk 0:02:59.8]} 2. c4 {[%clk 0:03:01]} 2...
e6 {[%clk 0:02:59.5]} 3. Nc3 {[%clk 0:03:01.5]} 3... Bb4 {[%clk 0:02:57.6]} 4.
Qc2 {[%clk 0:03:01.9]} 4... O-O {[%clk 0:02:56.7]} 5. e4 {[%clk 0:03:01.5]} 5...
d5 {[%clk 0:02:52.7]} 6. e5 {[%clk 0:03:01.2]} 6... Ne4 {[%clk 0:02:52.3]} 7.
Bd3 {[%clk 0:03:01.5]} 7... c5 {[%clk 0:02:44.6]} 8. Nf3 {[%clk 0:03:00.9]} 8...
cxd4 {[%clk 0:02:41]} 9. Nxd4 {[%clk 0:03:01.8]} 9... Nd7 {[%clk 0:02:41.2]} 10.
Bf4 {[%clk 0:03:00.5]} 10... Ndc5 {[%clk 0:02:30]} 11. O-O {[%clk 0:02:59.4]}
11... Nxd3 {[%clk 0:01:12.3]} 12. Qxd3 {[%clk 0:02:57.8]} 12... Nc5 {[%clk
0:01:12.7]} 13. Qg3 {[%clk 0:02:51.3]} 13... Bxc3 {[%clk 0:01:08.9]} 14. Qxc3
{[%clk 0:02:29.3]} 14... dxc4 {[%clk 0:01:00.7]} 15. Qxc4 {[%clk 0:02:21.3]}
15... b6 {[%clk 0:01:00.9]} 16. Rfd1 {[%clk 0:02:08.8]} 16... Ba6 {[%clk
0:01:00.2]} 17. Qc3 {[%clk 0:01:38.2]} 17... Qh4 {[%clk 0:00:57.9]} 18. Qe3
{[%clk 0:01:16.2]} 18... Rac8 {[%clk 0:00:49]} 19. f3 {[%clk 0:01:04.8]} 19...
Rfd8 {[%clk 0:00:36.4]} 20. Bg5 {[%clk 0:01:03.3]} 20... Qh5 {[%clk 0:00:35.3]}
21. Bxd8 {[%clk 0:01:02.2]} 21... Rxd8 {[%clk 0:00:35.9]} 22. Nc6 {[%clk
0:00:55.4]} 22... Re8 {[%clk 0:00:32.5]} 23. b4 {[%clk 0:00:50.5]} 23... Na4
{[%clk 0:00:15.7]} 24. Rd7 {[%clk 0:00:45.2]} 24... Bb5 {[%clk 0:00:15.6]} 25.
Rc1 {[%clk 0:00:37.9]} 25... h6 {[%clk 0:00:12.3]} 26. Rxa7 {[%clk 0:00:33]}
26... Kh8 {[%clk 0:00:09.2]} 27. Nd4 {[%clk 0:00:29.1]} 27... Nb2 {[%clk
0:00:02.9]} 1-0

[Event "*** Titled Tuesday Blitz"]
[Site "Chess.com"]
[Date "2021.04.27"]
[Round "2"]
[White "Sammed_Shete"]
[Black "Srisshhhtea"]
[Result "1-0"]
[WhiteElo "2640"]
[BlackElo "2339"]
[TimeControl "180+1"]
[EndTime "10:17:49 PDT"]
[Termination "Sammed_Shete won by checkmate"]

1. d4 {[%clk 0:03:00.4]} 1... d5 {[%clk 0:02:59.2]} 2. c4 {[%clk 0:03:00.3]}
2... e6 {[%clk 0:02:59.3]} 3. Nf3 {[%clk 0:03:00.5]} 3... Be7 {[%clk 0:02:59]}
4. Nc3 {[%clk 0:02:55.1]} 4... Nf6 {[%clk 0:02:58.4]} 5. Bg5 {[%clk 0:02:53]}
5... h6 {[%clk 0:02:57.9]} 6. Bxf6 {[%clk 0:02:53]} 6... Bxf6 {[%clk 0:02:58.8]}
7. e3 {[%clk 0:02:53.5]} 7... O-O {[%clk 0:02:58.5]} 8. cxd5 {[%clk 0:02:51]}
8... exd5 {[%clk 0:02:57.3]} 9. Bd3 {[%clk 0:02:51.9]} 9... c6 {[%clk
0:02:53.6]} 10. O-O {[%clk 0:02:51]} 10... Bg4 {[%clk 0:02:53.3]} 11. h3 {[%clk
0:02:47.8]} 11... Bh5 {[%clk 0:02:51]} 12. b4 {[%clk 0:02:42.7]} 12... a6 {[%clk
0:02:46.2]} 13. Rb1 {[%clk 0:02:41.2]} 13... Nd7 {[%clk 0:02:45.4]} 14. a4
{[%clk 0:02:40.5]} 14... Re8 {[%clk 0:02:09]} 15. b5 {[%clk 0:02:34.6]} 15...
axb5 {[%clk 0:02:07.9]} 16. axb5 {[%clk 0:02:34.4]} 16... Nf8 {[%clk 0:02:07.3]}
17. bxc6 {[%clk 0:02:28.7]} 17... bxc6 {[%clk 0:02:08.2]} 18. Rc1 {[%clk
0:02:21.7]} 18... Ne6 {[%clk 0:02:02.5]} 19. g4 {[%clk 0:02:11.1]} 19... Bg6
{[%clk 0:02:00.3]} 20. Bxg6 {[%clk 0:02:11.5]} 20... fxg6 {[%clk 0:02:01.2]} 21.
Na4 {[%clk 0:02:11.9]} 21... Qd6 {[%clk 0:01:49.9]} 22. Nc5 {[%clk 0:02:09.2]}
22... Ra2 {[%clk 0:01:18.2]} 23. Qb3 {[%clk 0:01:50.6]} 23... Re2 {[%clk
0:01:06.7]} 24. Qd3 {[%clk 0:01:42.4]} 24... Ra2 {[%clk 0:00:49.8]} 25. Qxg6
{[%clk 0:01:27.2]} 25... Nc7 {[%clk 0:00:47.9]} 26. Rfe1 {[%clk 0:01:11.1]}
26... Re7 {[%clk 0:00:35.2]} 27. g5 {[%clk 0:01:04]} 27... hxg5 {[%clk
0:00:11.6]} 28. Nxg5 {[%clk 0:01:02.4]} 28... Kf8 {[%clk 0:00:09.1]} 29. Rb1
{[%clk 0:00:39.6]} 29... Rxf2 {[%clk 0:00:08.3]} 30. Rb8+ {[%clk 0:00:37.6]}
30... Ne8 {[%clk 0:00:08.3]} 31. Nce6+ {[%clk 0:00:35.9]} 31... Rxe6 {[%clk
0:00:07.6]} 32. Qf7# {[%clk 0:00:36]} 1-0

[Event "*** Titled Tuesday Blitz"]
[Site "Chess.com"]
[Date "2021.04.27"]
[Round "2"]
[White "I_am_a_Miracle"]
[Black "MerryPoppies"]
[Result "1-0"]
[WhiteElo "2381"]
[BlackElo "2093"]
[TimeControl "180+1"]
[EndTime "10:17:49 PDT"]
[Termination "I_am_a_Miracle won by resignation"]

1. Nf3 {[%clk 0:03:00.9]} 1... d5 {[%clk 0:02:59.5]} 2. g3 {[%clk 0:03:00.8]}
2... Nf6 {[%clk 0:02:59.5]} 3. Bg2 {[%clk 0:03:01]} 3... c6 {[%clk 0:02:59.4]}
4. O-O {[%clk 0:03:00.9]} 4... Bf5 {[%clk 0:02:59.3]} 5. d3 {[%clk 0:03:00.6]}
5... e6 {[%clk 0:02:59.5]} 6. Nh4 {[%clk 0:03:00.8]} 6... Bg6 {[%clk 0:02:59.5]}
7. Nxg6 {[%clk 0:03:00.9]} 7... hxg6 {[%clk 0:03:00.4]} 8. Qe1 {[%clk
0:03:00.9]} 8... Bd6 {[%clk 0:03:00.3]} 9. e4 {[%clk 0:03:01]} 9... dxe4 {[%clk
0:03:00.4]} 10. dxe4 {[%clk 0:03:01.1]} 10... e5 {[%clk 0:02:59.2]} 11. a4
{[%clk 0:03:00.6]} 11... Nbd7 {[%clk 0:02:59.3]} 12. a5 {[%clk 0:03:00.5]} 12...
Nc5 {[%clk 0:02:54.9]} 13. Nd2 {[%clk 0:02:57.6]} 13... Qc7 {[%clk 0:02:45.3]}
14. Nc4 {[%clk 0:02:57.1]} 14... Be7 {[%clk 0:02:44.4]} 15. b4 {[%clk
0:02:25.3]} 15... Na6 {[%clk 0:02:43.1]} 16. c3 {[%clk 0:02:25.3]} 16... O-O-O
{[%clk 0:02:33.6]} 17. Be3 {[%clk 0:02:22.5]} 17... Kb8 {[%clk 0:02:31.1]} 18.
Nxe5 {[%clk 0:02:14.3]} 18... Bf8 {[%clk 0:02:06.4]} 19. Nc4 {[%clk 0:02:04.7]}
19... Ka8 {[%clk 0:02:05.9]} 20. Bf4 {[%clk 0:02:01.5]} 20... Qd7 {[%clk
0:02:00.5]} 21. Qe2 {[%clk 0:01:58]} 21... Nh5 {[%clk 0:01:54.1]} 22. Be3 {[%clk
0:01:51.8]} 22... Bd6 {[%clk 0:01:29.8]} 23. Rad1 {[%clk 0:01:46.2]} 23... Qc7
{[%clk 0:01:29.2]} 24. Nxd6 {[%clk 0:01:35.1]} 24... Rxd6 {[%clk 0:01:28.9]} 25.
Rxd6 {[%clk 0:01:35.6]} 25... Qxd6 {[%clk 0:01:29.8]} 26. Rd1 {[%clk 0:01:36.1]}
26... Qc7 {[%clk 0:01:29.3]} 27. Qd2 {[%clk 0:01:30.3]} 27... Kb8 {[%clk
0:01:02.6]} 28. Qd4 {[%clk 0:01:29.4]} 28... c5 {[%clk 0:00:54.2]} 29. bxc5
{[%clk 0:01:27.5]} 29... Kc8 {[%clk 0:00:53.4]} 30. c6 {[%clk 0:01:10.7]} 30...
bxc6 {[%clk 0:00:46]} 31. Qc4 {[%clk 0:01:08.3]} 31... Nb8 {[%clk 0:00:35.6]}
32. e5 {[%clk 0:00:56.6]} 32... Rd8 {[%clk 0:00:23.4]} 33. Rxd8+ {[%clk
0:00:55.6]} 33... Kxd8 {[%clk 0:00:21.2]} 34. g4 {[%clk 0:00:51.1]} 34... Qxe5
{[%clk 0:00:16.3]} 35. gxh5 {[%clk 0:00:50.6]} 35... Qxh5 {[%clk 0:00:16.5]} 36.
Qd4+ {[%clk 0:00:46.6]} 36... Nd7 {[%clk 0:00:16.6]} 37. Bxc6 {[%clk 0:00:42.6]}
37... Qh3 {[%clk 0:00:16.7]} 1-0

[Event "*** Titled Tuesday Blitz"]
[Site "Chess.com"]
[Date "2021.04.27"]
[Round "2"]
[White "mac0504"]
[Black "ChessAdvanceUSA"]
[Result "1/2-1/2"]
[WhiteElo "2590"]
[BlackElo "2319"]
[TimeControl "180+1"]
[EndTime "10:17:52 PDT"]
[Termination "Game drawn by agreement"]

1. e3 {[%clk 0:03:00.9]} 1... g6 {[%clk 0:02:55.3]} 2. Nf3 {[%clk 0:03:01.8]}
2... Bg7 {[%clk 0:02:55.2]} 3. Be2 {[%clk 0:02:57.4]} 3... c5 {[%clk 0:02:55.1]}
4. O-O {[%clk 0:02:57.5]} 4... Nf6 {[%clk 0:02:55.2]} 5. c4 {[%clk 0:02:52.7]}
5... O-O {[%clk 0:02:54.9]} 6. Nc3 {[%clk 0:02:50.7]} 6... b6 {[%clk 0:02:53.8]}
7. d4 {[%clk 0:02:50.3]} 7... cxd4 {[%clk 0:02:53.7]} 8. Nxd4 {[%clk 0:02:51.1]}
8... Bb7 {[%clk 0:02:53.3]} 9. Bf3 {[%clk 0:02:44.6]} 9... Qc8 {[%clk
0:02:49.2]} 10. b3 {[%clk 0:02:41]} 10... Nc6 {[%clk 0:02:48.4]} 11. Nxc6 {[%clk
0:02:37.3]} 11... Bxc6 {[%clk 0:02:47.4]} 12. Bb2 {[%clk 0:02:37.6]} 12... d6
{[%clk 0:02:38.6]} 13. a4 {[%clk 0:02:29.7]} 13... a6 {[%clk 0:02:24.2]} 14. Qe2
{[%clk 0:01:35.8]} 14... Rb8 {[%clk 0:02:15.5]} 15. Rfd1 {[%clk 0:01:33.8]}
15... Qb7 {[%clk 0:02:03.4]} 16. Rac1 {[%clk 0:01:24.6]} 16... Bxf3 {[%clk
0:02:01]} 17. Qxf3 {[%clk 0:01:25.5]} 17... Qxf3 {[%clk 0:02:00.5]} 18. gxf3
{[%clk 0:01:26.4]} 18... Rfc8 {[%clk 0:01:56.5]} 19. Kf1 {[%clk 0:01:14.1]}
19... Kf8 {[%clk 0:01:56.4]} 20. Ke2 {[%clk 0:01:13.6]} 20... Nd7 {[%clk
0:01:51.3]} 21. Ba3 {[%clk 0:01:02]} 21... Nc5 {[%clk 0:01:46.5]} 22. Nd5 {[%clk
0:00:47.9]} 22... Rc6 {[%clk 0:00:54.8]} 23. Bxc5 {[%clk 0:00:35.9]} 23... bxc5
{[%clk 0:00:52.8]} 24. Rd3 {[%clk 0:00:30.2]} 24... e6 {[%clk 0:00:50.6]} 25.
Nf4 {[%clk 0:00:29.9]} 25... Be5 {[%clk 0:00:43]} 26. Ng2 {[%clk 0:00:26.6]}
26... Rcb6 {[%clk 0:00:38.7]} 27. Rb1 {[%clk 0:00:26.7]} 27... Ke7 {[%clk
0:00:33.9]} 28. f4 {[%clk 0:00:25.5]} 28... Bg7 {[%clk 0:00:27.9]} 29. Kd2
{[%clk 0:00:25.7]} 29... Rb4 {[%clk 0:00:24.6]} 30. Kc2 {[%clk 0:00:25.2]} 30...
d5 {[%clk 0:00:14.3]} 31. cxd5 {[%clk 0:00:19.4]} 31... c4 {[%clk 0:00:14.1]}
1/2-1/2

[Event "*** Titled Tuesday Blitz"]
[Site "Chess.com"]
[Date "2021.04.27"]
[Round "2"]
[White "Supernotar"]
[Black "jerry_77"]
[Result "1/2-1/2"]
[WhiteElo "2743"]
[BlackElo "2458"]
[TimeControl "180+1"]
[EndTime "10:17:54 PDT"]
[Termination "Game drawn by repetition"]

1. d4 {[%clk 0:03:00.9]} 1... Nf6 {[%clk 0:02:53.2]} 2. c4 {[%clk 0:03:01.2]}
2... e6 {[%clk 0:02:53]} 3. Nf3 {[%clk 0:03:01.6]} 3... d5 {[%clk 0:02:53.2]} 4.
e3 {[%clk 0:03:02.1]} 4... Be7 {[%clk 0:02:53]} 5. Nbd2 {[%clk 0:03:02.5]} 5...
O-O {[%clk 0:02:53.5]} 6. Bd3 {[%clk 0:03:02.9]} 6... Nbd7 {[%clk 0:02:53.4]} 7.
O-O {[%clk 0:03:03.1]} 7... b6 {[%clk 0:02:53.8]} 8. Qe2 {[%clk 0:03:03.1]} 8...
Bb7 {[%clk 0:02:54.3]} 9. e4 {[%clk 0:03:03.7]} 9... dxe4 {[%clk 0:02:54.7]} 10.
Nxe4 {[%clk 0:03:04.6]} 10... Nxe4 {[%clk 0:02:55.4]} 11. Bxe4 {[%clk
0:03:05.4]} 11... Bxe4 {[%clk 0:02:56.3]} 12. Qxe4 {[%clk 0:03:06]} 12... Nf6
{[%clk 0:02:57.2]} 13. Qe2 {[%clk 0:03:06]} 13... c5 {[%clk 0:02:57.8]} 14. Rd1
{[%clk 0:03:05.2]} 14... Qc7 {[%clk 0:02:57.4]} 15. b3 {[%clk 0:03:05.3]} 15...
Rfd8 {[%clk 0:02:57.3]} 16. Bb2 {[%clk 0:03:05.6]} 16... Rd7 {[%clk 0:02:57.6]}
17. Ne5 {[%clk 0:03:02.4]} 17... Rd6 {[%clk 0:02:57.9]} 18. Rd3 {[%clk
0:03:01.4]} 18... Rad8 {[%clk 0:02:57.7]} 19. Rad1 {[%clk 0:03:01.5]} 19... cxd4
{[%clk 0:02:53]} 20. Rxd4 {[%clk 0:03:00.3]} 20... Rxd4 {[%clk 0:02:52.5]} 21.
Rxd4 {[%clk 0:03:01.2]} 21... Rxd4 {[%clk 0:02:52]} 22. Bxd4 {[%clk 0:03:02.1]}
22... Bc5 {[%clk 0:02:52.2]} 23. Qe3 {[%clk 0:02:57.7]} 23... Bxd4 {[%clk
0:02:51.7]} 24. Qxd4 {[%clk 0:02:58.6]} 24... Kf8 {[%clk 0:02:48.7]} 25. h3
{[%clk 0:02:54.2]} 25... Ke7 {[%clk 0:02:47.1]} 26. Ng4 {[%clk 0:02:52.5]} 26...
Nxg4 {[%clk 0:02:43.8]} 27. Qxg4 {[%clk 0:02:52.1]} 27... Qe5 {[%clk 0:02:39.1]}
28. Qh4+ {[%clk 0:02:44.6]} 28... g5 {[%clk 0:02:39.1]} 29. Qxh7 {[%clk
0:02:40.5]} 29... Qe1+ {[%clk 0:02:39.1]} 30. Kh2 {[%clk 0:02:40.4]} 30... Qxf2
{[%clk 0:02:40]} 31. Qe4 {[%clk 0:02:38]} 31... Qxa2 {[%clk 0:02:38.8]} 32. Qb7+
{[%clk 0:02:38.1]} 32... Kf6 {[%clk 0:02:38.6]} 33. Qf3+ {[%clk 0:02:37.7]}
33... Kg7 {[%clk 0:02:38.8]} 34. Qc3+ {[%clk 0:02:37.6]} 34... Kg6 {[%clk
0:02:37]} 35. b4 {[%clk 0:02:35.9]} 35... Qf2 {[%clk 0:02:30.9]} 36. c5 {[%clk
0:02:32.3]} 36... bxc5 {[%clk 0:02:29.2]} 37. bxc5 {[%clk 0:02:31.2]} 37... Qf4+
{[%clk 0:02:29.3]} 38. Kh1 {[%clk 0:02:30]} 38... Qc7 {[%clk 0:02:27.7]} 39. c6
{[%clk 0:02:28.5]} 39... a5 {[%clk 0:02:12.8]} 40. Qd3+ {[%clk 0:02:20.4]} 40...
Kf6 {[%clk 0:02:11.9]} 41. Qd4+ {[%clk 0:02:17.5]} 41... Ke7 {[%clk 0:02:07.3]}
42. Qc5+ {[%clk 0:02:16.7]} 42... Ke8 {[%clk 0:02:05]} 43. Qxg5 {[%clk
0:02:10.8]} 43... Qxc6 {[%clk 0:02:04.4]} 44. Qxa5 {[%clk 0:02:10]} 44... f5
{[%clk 0:02:01.5]} 45. Qe5 {[%clk 0:02:07.3]} 45... Kf7 {[%clk 0:02:01.4]} 46.
Kh2 {[%clk 0:02:04.5]} 46... Kg6 {[%clk 0:02:01.6]} 47. h4 {[%clk 0:01:58.1]}
47... Qc4 {[%clk 0:02:01.2]} 48. g3 {[%clk 0:01:50.7]} 48... Kh5 {[%clk
0:01:58.9]} 49. Kh3 {[%clk 0:01:24.6]} 49... Qf1+ {[%clk 0:01:43.1]} 50. Kh2
{[%clk 0:01:24.5]} 50... Qf2+ {[%clk 0:01:42.8]} 51. Kh3 {[%clk 0:01:24.2]}
51... Qf1+ {[%clk 0:01:39.2]} 52. Kh2 {[%clk 0:01:24.3]} 52... Qc4 {[%clk
0:01:39.8]} 53. Kh3 {[%clk 0:01:21.1]} 53... Kg6 {[%clk 0:01:34.2]} 54. Kg2
{[%clk 0:01:14]} 54... Qb3 {[%clk 0:01:25.2]} 55. Kf2 {[%clk 0:01:07.1]} 55...
Kh5 {[%clk 0:01:20.5]} 56. Qf4 {[%clk 0:01:04.8]} 56... Kg6 {[%clk 0:01:17]} 57.
Qg5+ {[%clk 0:01:04.3]} 57... Kf7 {[%clk 0:01:14.9]} 58. h5 {[%clk 0:01:03.6]}
58... Qc2+ {[%clk 0:01:14.7]} 59. Kf3 {[%clk 0:00:58.5]} 59... Qd3+ {[%clk
0:01:14.1]} 60. Kg2 {[%clk 0:00:54.5]} 60... Qe2+ {[%clk 0:01:14.1]} 61. Kh3
{[%clk 0:00:54.4]} 61... Qf1+ {[%clk 0:01:12.1]} 62. Kh2 {[%clk 0:00:54.7]}
62... Qf2+ {[%clk 0:01:03.6]} 63. Kh3 {[%clk 0:00:54.8]} 63... Qf1+ {[%clk
0:01:04.5]} 64. Kh2 {[%clk 0:00:55]} 64... Qf2+ {[%clk 0:01:04.3]} 65. Kh3
{[%clk 0:00:55.3]} 65... Qf1+ {[%clk 0:01:01.6]} 1/2-1/2

[Event "*** Titled Tuesday Blitz"]
[Site "Chess.com"]
[Date "2021.04.27"]
[Round "2"]
[White "Sergey85Rodchenkov"]
[Black "chessajedrezz2020"]
[Result "1-0"]
[WhiteElo "2505"]
[BlackElo "2687"]
[TimeControl "180+1"]
[EndTime "10:17:55 PDT"]
[Termination "Sergey85Rodchenkov won on time"]

1. e4 {[%clk 0:03:00.9]} 1... c6 {[%clk 0:02:58.9]} 2. d4 {[%clk 0:03:00.4]}
2... d5 {[%clk 0:02:59]} 3. exd5 {[%clk 0:03:00.5]} 3... cxd5 {[%clk 0:02:59.1]}
4. c4 {[%clk 0:03:01.2]} 4... Nf6 {[%clk 0:02:59.1]} 5. Nc3 {[%clk 0:03:01.3]}
5... g6 {[%clk 0:02:44]} 6. Qb3 {[%clk 0:03:00.1]} 6... Bg7 {[%clk 0:02:36.1]}
7. cxd5 {[%clk 0:02:59.5]} 7... O-O {[%clk 0:02:35.5]} 8. Be2 {[%clk 0:02:58.8]}
8... Na6 {[%clk 0:02:29.1]} 9. Bf3 {[%clk 0:02:57.7]} 9... Nc7 {[%clk
0:02:06.1]} 10. Bg5 {[%clk 0:02:52.9]} 10... Bg4 {[%clk 0:01:42.4]} 11. Bxf6
{[%clk 0:02:51.3]} 11... Bxf3 {[%clk 0:01:41.5]} 12. Nxf3 {[%clk 0:02:51.4]}
12... Bxf6 {[%clk 0:01:40.4]} 13. O-O {[%clk 0:02:50.5]} 13... b6 {[%clk
0:01:39.3]} 14. Ne5 {[%clk 0:02:37.4]} 14... Qd6 {[%clk 0:01:36.7]} 15. Rfe1
{[%clk 0:02:30.2]} 15... Rfd8 {[%clk 0:01:33.1]} 16. Nc6 {[%clk 0:02:28.6]}
16... Rd7 {[%clk 0:01:32.4]} 17. g3 {[%clk 0:02:13.9]} 17... Kf8 {[%clk
0:01:14.1]} 18. Ne4 {[%clk 0:01:59.1]} 18... Qxd5 {[%clk 0:01:11.9]} 19. Nxf6
{[%clk 0:01:59.3]} 19... exf6 {[%clk 0:01:11.5]} 20. Qa3+ {[%clk 0:01:31.6]}
20... Qd6 {[%clk 0:01:02.3]} 21. Qf3 {[%clk 0:01:12.3]} 21... Nd5 {[%clk
0:00:51.2]} 22. Rac1 {[%clk 0:01:09]} 22... Rc8 {[%clk 0:00:19.6]} 23. Ne5
{[%clk 0:00:28.1]} 23... Rdc7 {[%clk 0:00:18.9]} 24. Rxc7 {[%clk 0:00:26.4]}
24... Rxc7 {[%clk 0:00:19.8]} 25. Ng4 {[%clk 0:00:25.8]} 1-0

[Event "*** Titled Tuesday Blitz"]
[Site "Chess.com"]
[Date "2021.04.27"]
[Round "2"]
[White "shreyansshah123"]
[Black "Pantata007"]
[Result "1-0"]
[WhiteElo "1694"]
[BlackElo "2326"]
[TimeControl "180+1"]
[EndTime "10:17:55 PDT"]
[Termination "shreyansshah123 won on time"]

1. d4 {[%clk 0:03:00.9]} 1... d5 {[%clk 0:02:59.4]} 2. Nf3 {[%clk 0:03:01.3]}
2... Nf6 {[%clk 0:02:58.9]} 3. Bf4 {[%clk 0:03:01.9]} 3... c5 {[%clk 0:02:58.7]}
4. e3 {[%clk 0:03:02.2]} 4... Nc6 {[%clk 0:02:58.6]} 5. c3 {[%clk 0:03:02.2]}
5... Qb6 {[%clk 0:02:56.1]} 6. Qc1 {[%clk 0:03:01.6]} 6... Bf5 {[%clk 0:02:49]}
7. h3 {[%clk 0:03:01.1]} 7... e6 {[%clk 0:02:48.5]} 8. Nh4 {[%clk 0:03:00.4]}
8... Be4 {[%clk 0:02:44.8]} 9. f3 {[%clk 0:02:58.9]} 9... Bg6 {[%clk 0:02:43.3]}
10. Nxg6 {[%clk 0:02:58.6]} 10... hxg6 {[%clk 0:02:43.3]} 11. Bd3 {[%clk
0:02:59]} 11... Rc8 {[%clk 0:02:37.7]} 12. Bc2 {[%clk 0:02:58.2]} 12... Be7
{[%clk 0:02:19.6]} 13. dxc5 {[%clk 0:02:56.2]} 13... Bxc5 {[%clk 0:02:15.4]} 14.
b4 {[%clk 0:02:55.6]} 14... Be7 {[%clk 0:02:06.1]} 15. a3 {[%clk 0:02:54]} 15...
O-O {[%clk 0:02:03.3]} 16. O-O {[%clk 0:02:52.5]} 16... e5 {[%clk 0:02:02.2]}
17. Bg3 {[%clk 0:02:51.4]} 17... d4 {[%clk 0:01:59.3]} 18. Qb2 {[%clk
0:02:37.3]} 18... d3 {[%clk 0:01:34]} 19. Bd1 {[%clk 0:02:32.9]} 19... Qxe3+
{[%clk 0:01:31.6]} 20. Bf2 {[%clk 0:02:33.1]} 20... Qf4 {[%clk 0:01:20]} 21. Qd2
{[%clk 0:02:29.2]} 21... Qf5 {[%clk 0:01:07]} 22. c4 {[%clk 0:02:16.3]} 22...
Rfd8 {[%clk 0:00:46.5]} 23. Nc3 {[%clk 0:02:10]} 23... a5 {[%clk 0:00:45.1]} 24.
b5 {[%clk 0:02:09.8]} 24... Nd4 {[%clk 0:00:45]} 25. Bxd4 {[%clk 0:02:09.5]}
25... Rxd4 {[%clk 0:00:39.1]} 26. Bb3 {[%clk 0:02:08.9]} 26... Bc5 {[%clk
0:00:31.6]} 27. Kh1 {[%clk 0:02:07.6]} 27... Qh5 {[%clk 0:00:22.8]} 28. Kh2
{[%clk 0:02:04.4]} 28... e4 {[%clk 0:00:14.5]} 29. fxe4 {[%clk 0:02:03.1]} 29...
Nxe4 {[%clk 0:00:15.4]} 30. Nxe4 {[%clk 0:02:02.8]} 30... Rxe4 {[%clk
0:00:14.5]} 31. Rae1 {[%clk 0:02:02.4]} 31... Qe5+ {[%clk 0:00:12]} 32. Kh1
{[%clk 0:02:00]} 32... Re8 {[%clk 0:00:11.8]} 33. Rxe4 {[%clk 0:01:59.8]} 33...
Qxe4 {[%clk 0:00:12.7]} 34. Kh2 {[%clk 0:01:58.2]} 34... Be3 {[%clk 0:00:09.5]}
35. Qd1 {[%clk 0:01:57.6]} 35... Qe5+ {[%clk 0:00:06.6]} 36. Kh1 {[%clk
0:01:55.5]} 36... Qd4 {[%clk 0:00:02.9]} 37. a4 {[%clk 0:01:54.8]} 37... Rf8
{[%clk 0:00:02.7]} 38. Re1 {[%clk 0:01:54.3]} 38... d2 {[%clk 0:00:02.8]} 39.
Re2 {[%clk 0:01:54.5]} 39... Bh6 {[%clk 0:00:02.8]} 40. Bc2 {[%clk 0:01:54]}
40... Kh8 {[%clk 0:00:02.9]} 41. Qf1 {[%clk 0:01:53.3]} 41... Qxc4 {[%clk
0:00:02.7]} 42. Bd1 {[%clk 0:01:53.5]} 42... Qd4 {[%clk 0:00:03]} 43. Rf2 {[%clk
0:01:51.9]} 43... f5 {[%clk 0:00:03.1]} 44. Rf3 {[%clk 0:01:51.6]} 44... Qb4
{[%clk 0:00:03.1]} 45. g4 {[%clk 0:01:51.5]} 45... fxg4 {[%clk 0:00:02.7]} 46.
Rxf8+ {[%clk 0:01:51]} 46... Kh7 {[%clk 0:00:03.6]} 47. hxg4 {[%clk 0:01:50.2]}
47... Qe4+ {[%clk 0:00:03.4]} 48. Bf3 {[%clk 0:01:48.7]} 48... Qe1 {[%clk
0:00:03.7]} 49. Kg2 {[%clk 0:01:42.2]} 49... Qe3 {[%clk 0:00:01.5]} 50. Bd1
{[%clk 0:01:40.4]} 50... Qd4 {[%clk 0:00:01.8]} 51. Rf3 {[%clk 0:01:39.3]} 51...
Qd5 {[%clk 0:00:02.1]} 52. Kg3 {[%clk 0:01:39.1]} 52... Qd4 {[%clk 0:00:01.7]}
53. g5 {[%clk 0:01:39]} 53... Qd6+ {[%clk 0:00:01.8]} 54. Kg2 {[%clk 0:01:37.9]}
54... Bxg5 {[%clk 0:00:02]} 55. Rg3 {[%clk 0:01:38.1]} 55... Bh6 {[%clk
0:00:02.5]} 56. Qh1 {[%clk 0:01:38.2]} 56... Qd5+ {[%clk 0:00:02.9]} 57. Kh2
{[%clk 0:01:37.8]} 57... Qh5+ {[%clk 0:00:02.5]} 58. Bxh5 {[%clk 0:01:36.2]}
58... gxh5 {[%clk 0:00:02.4]} 59. Qd1 {[%clk 0:01:36.1]} 1-0

[Event "*** Titled Tuesday Blitz"]
[Site "Chess.com"]
[Date "2021.04.27"]
[Round "2"]
[White "KubaGepard"]
[Black "szefru"]
[Result "1-0"]
[WhiteElo "2411"]
[BlackElo "2156"]
[TimeControl "180+1"]
[EndTime "10:17:56 PDT"]
[Termination "KubaGepard won by resignation"]

1. d4 {[%clk 0:02:47]} 1... Nf6 {[%clk 0:02:59.6]} 2. Nf3 {[%clk 0:02:46.4]}
2... g6 {[%clk 0:02:59.7]} 3. g3 {[%clk 0:02:45.4]} 3... Bg7 {[%clk 0:03:00.3]}
4. Bg2 {[%clk 0:02:46.3]} 4... d5 {[%clk 0:03:00.9]} 5. O-O {[%clk 0:02:47.2]}
5... O-O {[%clk 0:03:01.5]} 6. c4 {[%clk 0:02:47.6]} 6... c6 {[%clk 0:03:02.1]}
7. Qb3 {[%clk 0:02:44.7]} 7... Ne4 {[%clk 0:02:25.6]} 8. Nc3 {[%clk 0:02:30]}
8... Nxc3 {[%clk 0:02:02.2]} 9. Qxc3 {[%clk 0:02:28.7]} 9... dxc4 {[%clk
0:01:59.5]} 10. Qxc4 {[%clk 0:02:27]} 10... Be6 {[%clk 0:02:00.1]} 11. Qd3
{[%clk 0:02:25.8]} 11... h6 {[%clk 0:01:37.4]} 12. Rd1 {[%clk 0:02:17.5]} 12...
Na6 {[%clk 0:01:31.6]} 13. e4 {[%clk 0:02:14.4]} 13... Nb4 {[%clk 0:01:08]} 14.
Qc3 {[%clk 0:02:11.6]} 14... Nxa2 {[%clk 0:00:55.8]} 15. Qa3 {[%clk 0:01:54]}
15... Nxc1 {[%clk 0:00:55.5]} 16. Raxc1 {[%clk 0:01:54.1]} 16... Qb6 {[%clk
0:00:52.1]} 17. b4 {[%clk 0:01:47.5]} 17... a5 {[%clk 0:00:50.3]} 18. bxa5
{[%clk 0:01:47.2]} 18... Rxa5 {[%clk 0:00:49.7]} 19. Qxe7 {[%clk 0:01:46.4]}
19... Bg4 {[%clk 0:00:47.2]} 20. Rb1 {[%clk 0:01:42.8]} 20... Rb5 {[%clk
0:00:41.1]} 21. Rxb5 {[%clk 0:01:39.9]} 21... Qxb5 {[%clk 0:00:42]} 22. Qc5
{[%clk 0:01:36.3]} 22... Qe2 {[%clk 0:00:37.5]} 23. Re1 {[%clk 0:01:33.2]} 23...
Qd3 {[%clk 0:00:37.4]} 24. Ne5 {[%clk 0:01:25.3]} 24... Qd2 {[%clk 0:00:34]} 25.
Rf1 {[%clk 0:01:22.5]} 25... Be2 {[%clk 0:00:32.3]} 26. Rc1 {[%clk 0:01:13.5]}
26... Bxe5 {[%clk 0:00:21]} 27. dxe5 {[%clk 0:01:12.6]} 27... Rd8 {[%clk
0:00:21.4]} 28. f4 {[%clk 0:01:07.9]} 28... Qxc1+ {[%clk 0:00:20.4]} 29. Qxc1
{[%clk 0:01:07]} 29... Rd1+ {[%clk 0:00:21.3]} 30. Qxd1 {[%clk 0:01:07.3]} 30...
Bxd1 {[%clk 0:00:22.2]} 31. Kf2 {[%clk 0:01:07.3]} 31... b5 {[%clk 0:00:21.4]}
32. Ke3 {[%clk 0:01:07.8]} 32... Bb3 {[%clk 0:00:20.8]} 33. Kd4 {[%clk
0:01:07.5]} 33... Bc4 {[%clk 0:00:18.7]} 34. Kc5 {[%clk 0:01:07.7]} 34... Kg7
{[%clk 0:00:19.2]} 35. f5 {[%clk 0:01:07.9]} 35... f6 {[%clk 0:00:19.9]} 36. e6
{[%clk 0:01:07.9]} 36... gxf5 {[%clk 0:00:20.2]} 37. exf5 {[%clk 0:01:08.2]}
37... Bd3 {[%clk 0:00:20.6]} 38. g4 {[%clk 0:01:08.4]} 38... Kf8 {[%clk
0:00:20.4]} 39. Bxc6 {[%clk 0:01:08.2]} 39... Ke7 {[%clk 0:00:20.1]} 40. Bxb5
{[%clk 0:01:07.1]} 40... Be4 {[%clk 0:00:20.5]} 41. Be2 {[%clk 0:01:07.2]} 41...
h5 {[%clk 0:00:19.3]} 42. h3 {[%clk 0:01:03.8]} 42... hxg4 {[%clk 0:00:20.2]}
43. Bxg4 {[%clk 0:01:04]} 43... Bg2 {[%clk 0:00:19.5]} 44. h4 {[%clk 0:01:04]}
44... Be4 {[%clk 0:00:07.1]} 45. h5 {[%clk 0:01:03.8]} 45... Bc2 {[%clk
0:00:06.4]} 46. h6 {[%clk 0:01:02.7]} 1-0